fUST/lending_fUST_20240413
["ID","MTS","AMOUNT","RATE_DAILY","PERIOD"]
[322355463,1712962242155,-4649.1251624,0.00054,120]
[322355464,1712962242165,-159.8876347,0.00054052,60]
[322355465,1712962242174,-154.32520978,0.00054076,60]
[322355466,1712962242183,-230.0,0.0005473,35]
[322355467,1712962242194,-150.5,0.0005473,35]
[322355468,1712962242204,-230.0,0.0005474,35]
[322355469,1712962242213,-150.5,0.0005474,35]
[322355470,1712962242222,-230.0,0.0005475,35]
[322355471,1712962242231,-150.5,0.00054754,35]
[322355472,1712962242240,-228.0,0.00054754,35]
[322355473,1712962242249,-260.0,0.00054754,35]
[322355474,1712962242259,-251.11,0.00054764,35]
[322355475,1712962242269,-275.4,0.00054764,35]
[322355476,1712962242278,-2612.0,0.00054764,35]
[322355477,1712962242288,-228.0,0.00054764,35]
[322355478,1712962242297,-260.0,0.00054764,35]
[322355479,1712962242305,-150.5,0.00054774,35]
[322355480,1712962242314,-150.5,0.00054774,35]
[322355481,1712962242324,-2612.0,0.00054774,35]
[322355482,1712962242333,-228.0,0.00054774,35]
[322355483,1712962242342,-260.0,0.00054774,35]
[322355484,1712962242354,-150.5,0.00054784,35]
[322355485,1712962242363,-290.79,0.00054784,35]
[322355486,1712962242372,-150.5,0.00054784,35]
[322355487,1712962242382,-2612.0,0.00054784,35]
[322355488,1712962242392,-500.0,0.00054794,120]
[322355489,1712962242401,-500.0,0.00054794,120]
[322355490,1712962242411,-500.0,0.00054794,120]
[322355491,1712962242420,-505.18917879,0.00054794,120]
[322355492,1712962242429,-500.0,0.00054794,120]
[322355493,1712962242438,-500.0,0.00054794,120]
[322355494,1712962242447,-503.48780437,0.00054794,120]
[322355495,1712962242457,-500.0,0.00054794,120]
[322355496,1712962242467,-500.0,0.00054794,120]
[322355497,1712962242476,-502.34184716,0.00054794,120]
[322355498,1712962242486,-500.0,0.00054794,120]
[322355499,1712962242495,-313.40421481,0.00054794,120]
[322355500,1712962242504,-500.0,0.00054794,120]
[322355501,1712962242514,-613.34149753,0.00054794,120]
[322355502,1712962242523,-500.0,0.00054794,120]
[322355503,1712962242532,-501.39891535,0.00054794,120]
[322355504,1712962242542,-500.0,0.00054794,120]
[322355505,1712962242551,-501.32324898,0.00054794,120]
[322355506,1712962242560,-500.0,0.00054794,120]
[322355507,1712962242569,-500.0,0.00054794,120]
[322355508,1712962242578,-500.0,0.00054794,120]
[322355509,1712962242587,-870.64,0.00054794,120]
[322355510,1712962242597,-500.0,0.00054794,120]
[322355511,1712962242610,-151.0,0.00054794,120]
[322355512,1712962242621,-500.0,0.00054794,120]
[322355513,1712962242630,-500.0,0.00054794,120]
[322355514,1712962242641,-500.0,0.00054794,120]
[322355515,1712962242652,-247.55776255,0.00054794,120]
[322355516,1712962242663,-536.17016406,0.00054794,120]
[322355517,1712962242674,-500.0,0.00054794,120]
[322355518,1712962242686,-500.0,0.00054794,120]
[322355519,1712962242698,-500.0,0.00054794,120]
[322355520,1712962242709,-602.99,0.00054794,120]
[322355521,1712962242721,-500.0,0.00054794,120]
[322355522,1712962242732,-500.0,0.00054794,120]
[322355523,1712962242743,-156.00968678,0.00054794,120]
[322355524,1712962242755,-345.37772374,0.00054794,120]
[322355525,1712962242766,-500.0,0.00054794,120]
[322355526,1712962242780,-500.0,0.00054794,120]
[322355527,1712962242791,-500.0,0.00054794,120]
[322355528,1712962242802,-500.0,0.00054794,120]
[322355529,1712962242812,-500.0,0.00054794,120]
[322355530,1712962242823,-500.0,0.00054794,120]
[322355531,1712962242835,-500.0,0.00054794,120]
[322355532,1712962242846,-500.0,0.00054794,120]
[322355533,1712962242866,-500.0,0.00054794,120]
[322355534,1712962242887,-390.67646101,0.00054794,120]
[322355535,1712962242899,-500.0,0.00054794,120]
[322355536,1712962242910,-500.0,0.00054794,120]
[322355537,1712962242921,-509.89917167,0.00054794,120]
[322355538,1712962242934,-500.0,0.00054794,120]
[322355539,1712962242945,-500.0,0.00054794,120]
[322355540,1712962242956,-500.0,0.00054794,120]
[322355541,1712962242967,-506.72686497,0.00054794,120]
[322355542,1712962242978,-500.0,0.00054794,120]
[322355543,1712962242989,-500.0,0.00054794,120]
[322355544,1712962243000,-500.0,0.00054794,120]
[322355545,1712962243012,-500.0,0.00054794,120]
[322355546,1712962243023,-504.78489958,0.00054794,120]
[322355547,1712962243033,-168.98305112,0.00054794,120]
[322355549,1712962243044,-501.01601647,0.00054794,120]
[322355550,1712962243055,-500.0,0.00054794,120]
[322355551,1712962243065,-500.0,0.00054794,120]
[322355552,1712962243076,-500.0,0.00054794,120]
[322355553,1712962243092,-500.0,0.00054794,120]
[322355554,1712962243111,-500.0,0.00054794,120]
[322355555,1712962243121,-500.0,0.00054794,7]
[322355556,1712962243131,-500.0,0.00054794,120]
[322355557,1712962243144,-258.29226121,0.00054794,120]
[322355558,1712962243154,-186.44570129,0.00054794,120]
[322355559,1712962243164,-500.0,0.00054794,120]
[322355560,1712962243175,-500.0,0.00054794,120]
[322355561,1712962243185,-500.0,0.00054794,120]
[322355562,1712962243196,-500.0,0.00054794,120]
[322355563,1712962243205,-500.0,0.00054794,120]
[322355564,1712962243215,-500.0,0.00054794,120]
[322355565,1712962243225,-165.05427389,0.00054794,120]
[322355566,1712962243234,-500.0,0.00054794,120]
[322355567,1712962243244,-500.0,0.00054794,120]
[322355568,1712962243253,-500.0,0.00054794,120]
[322355569,1712962243263,-500.0,0.00054794,120]
[322355570,1712962243273,-500.0,0.00054794,120]
[322355571,1712962243283,-500.0,0.00054794,120]
[322355572,1712962243293,-500.0,0.00054794,120]
[322355573,1712962243303,-500.0,0.00054794,120]
[322355574,1712962243313,-500.0,0.00054794,120]
[322355575,1712962243325,-500.0,0.00054794,120]
[322355576,1712962243336,-500.0,0.00054794,120]
[322355577,1712962243347,-500.0,0.00054794,120]
[322355578,1712962243360,-500.0,0.00054794,2]
[322355579,1712962243371,-500.0,0.00054794,120]
[322355580,1712962243382,-1019.03,0.00054794,120]
[322355581,1712962243393,-500.0,0.00054794,120]
[322355582,1712962243404,-500.0,0.00054794,120]
[322355583,1712962243415,-460.75941133,0.00054794,120]
[322355584,1712962243425,-500.0,0.00054794,120]
[322355585,1712962243435,-500.28658205,0.00054794,120]
[322355586,1712962243445,-501.09377229,0.00054794,120]
[322355587,1712962243456,-301.4684074,0.00054794,120]
[322355588,1712962243466,-500.0,0.00054794,120]
[322355589,1712962243477,-500.0,0.00054794,120]
[322355590,1712962243487,-500.0,0.00054794,14]
[322355591,1712962243497,-502.65307009,0.00054794,120]
[322355592,1712962243506,-500.0,0.00054794,120]
[322355593,1712962243516,-500.0,0.00054794,120]
[322355594,1712962243526,-500.0,0.00054794,120]
[322355595,1712962243535,-500.0,0.00054794,120]
[322355596,1712962243545,-500.0,0.00054794,120]
[322355597,1712962243555,-500.0,0.00054794,120]
[322355598,1712962243564,-500.0,0.00054794,120]
[322355599,1712962243574,-500.0,0.00054794,120]
[322355600,1712962243583,-500.0,0.00054794,120]
[322355601,1712962243593,-500.0,0.00054794,120]
[322355602,1712962243608,-500.0,0.00054794,120]
[322355603,1712962243619,-500.0,0.00054794,120]
[322355604,1712962243631,-500.0,0.00054794,120]
[322355605,1712962243642,-500.0,0.00054794,120]
[322355606,1712962243652,-500.0,0.00054794,120]
[322355607,1712962243662,-500.0,0.00054794,120]
[322355608,1712962243672,-500.0,0.00054794,120]
[322355609,1712962243683,-500.0,0.00054794,120]
[322355610,1712962243695,-500.0,0.00054794,120]
[322355611,1712962243708,-500.0,0.00054794,120]
[322355612,1712962243718,-500.0,0.00054794,120]
[322355613,1712962243729,-501.45372642,0.00054794,120]
[322355614,1712962243740,-1067.04249297,0.00054794,120]
[322355615,1712962243751,-500.0,0.00054794,120]
[322355616,1712962243762,-500.0,0.00054794,120]
[322355617,1712962243773,-500.0,0.00054794,120]
[322355618,1712962243784,-500.0,0.00054794,120]
[322355619,1712962243794,-500.0,0.00054794,120]
[322355620,1712962243806,-500.0,0.00054794,120]
[322355621,1712962243816,-212.64195582,0.00054794,120]
[322355622,1712962243826,-500.0,0.00054794,120]
[322355623,1712962243837,-500.0,0.00054794,120]
[322355624,1712962243847,-500.0,0.00054794,120]
[322355625,1712962243859,-500.0,0.00054794,120]
[322355626,1712962243868,-503.61527908,0.00054794,120]
[322355627,1712962243878,-500.0,0.00054794,120]
[322355628,1712962243887,-500.0,0.00054794,120]
[322355629,1712962243896,-500.0,0.00054794,120]
[322355630,1712962243905,-500.0,0.00054794,120]
[322355631,1712962243915,-500.0,0.00054794,120]
[322355632,1712962243924,-500.0,0.00054794,120]
[322355633,1712962243934,-500.0,0.00054794,120]
[322355634,1712962243943,-500.0,0.00054794,120]
[322355635,1712962243953,-500.0,0.00054794,120]
[322355636,1712962243962,-500.0,0.00054794,120]
[322355637,1712962243971,-500.0,0.00054794,120]
[322355638,1712962243980,-500.0,0.00054794,120]
[322355639,1712962243989,-500.0,0.00054794,120]
[322355640,1712962243999,-500.0,0.00054794,120]
[322355641,1712962244008,-500.0,0.00054794,120]
[322355642,1712962244018,-500.0,0.00054794,120]
[322355643,1712962244027,-386.29650499,0.00054794,120]
[322355644,1712962244037,-500.0,0.00054794,120]
[322355645,1712962244046,-500.0,0.00054794,120]
[322355646,1712962244056,-500.0,0.00054794,120]
[322355647,1712962244066,-500.0,0.00054794,120]
[322355648,1712962244075,-501.57523464,0.00054794,120]
[322355649,1712962244085,-535.69001352,0.00054794,120]
[322355650,1712962244097,-500.0,0.00054794,120]
[322355651,1712962244109,-500.0,0.00054794,120]
[322355652,1712962244118,-619.7987976,0.00054794,120]
[322355653,1712962244128,-1581.45,0.00054794,60]
[322355654,1712962244139,-213.32376366,0.00054794,120]
[322355655,1712962244148,-500.0,0.00054794,120]
[322355656,1712962244157,-322.05620076,0.00054794,120]
[322355657,1712962244166,-500.0,0.00054794,120]
[322355658,1712962244175,-522.42007486,0.00054794,120]
[322355659,1712962244186,-481.75843307,0.00054794,120]
[322355660,1712962244195,-987.57,0.00054794,120]
[322355661,1712962244204,-501.97906783,0.00054794,120]
[322355662,1712962244213,-500.0,0.00054794,120]
[322355663,1712962244222,-500.0,0.00054794,120]
[322355664,1712962244233,-500.0,0.00054794,120]
[322355665,1712962244243,-500.0,0.00054794,120]
[322355666,1712962244254,-500.0,0.00054794,120]
[322355668,1712962244263,-500.0,0.00054794,120]
[322355670,1712962244272,-500.0,0.00054794,120]
[322355672,1712962244281,-500.0,0.00054794,120]
[322355673,1712962244290,-181.98398192,0.00054794,120]
[322355675,1712962244299,-374.61535197,0.00054794,120]
[322355677,1712962244309,-500.0,0.00054794,120]
[322355678,1712962244319,-500.0,0.00054794,120]
[322355680,1712962244328,-500.0,0.00054794,120]
[322355681,1712962244337,-500.0,0.00054794,120]
[322355682,1712962244346,-500.0,0.00054794,120]
[322355683,1712962244356,-500.0,0.00054794,120]
[322355684,1712962244364,-500.0,0.00054794,120]
[322355685,1712962244374,-381.56469554,0.00054794,120]
[322355686,1712962244383,-500.0,0.00054794,120]
[322355687,1712962244482,-487.54079071,0.00054794,120]
[322355688,1712962244492,-500.0,0.00054794,120]
[322355689,1712962244502,-500.0,0.00054794,120]
[322355690,1712962244511,-500.0,0.00054794,120]
[322355691,1712962244520,-500.0,0.00054794,120]
[322355692,1712962244529,-500.0,0.00054794,120]
[322355693,1712962244539,-500.0,0.00054794,120]
[322355694,1712962244549,-505.72965675,0.00054794,120]
[322355695,1712962244560,-500.0,0.00054794,120]
[322355696,1712962244570,-500.0,0.00054794,120]
[322355697,1712962244580,-500.0,0.00054794,120]
[322355698,1712962244589,-500.0,0.00054794,120]
[322355699,1712962244598,-500.0,0.00054794,120]
[322355700,1712962244610,-594.49369552,0.00054794,120]
[322355701,1712962244619,-342.82346828,0.00054794,120]
[322355702,1712962244628,-500.0,0.00054794,120]
[322355703,1712962244638,-500.0,0.00054794,120]
[322355704,1712962244647,-500.0,0.00054794,120]
[322355705,1712962244656,-500.0,0.00054794,120]
[322355706,1712962244665,-500.0,0.00054794,120]
[322355707,1712962244674,-500.0,0.00054794,120]
[322355708,1712962244683,-500.0,0.00054794,120]
[322355709,1712962244692,-500.0,0.00054794,120]
[322355710,1712962244701,-500.0,0.00054794,120]
[322355711,1712962244710,-502.23059441,0.00054794,120]
[322355712,1712962244719,-500.0,0.00054794,120]
[322355713,1712962244728,-500.0,0.00054794,120]
[322355714,1712962244738,-500.0,0.00054794,120]
[322355715,1712962244748,-500.0,0.00054794,120]
[322355716,1712962244758,-500.0,0.00054794,120]
[322355717,1712962244767,-729.85,0.00054794,120]
[322355718,1712962244777,-500.0,0.00054794,120]
[322355719,1712962244787,-500.0,0.00054794,120]
[322355720,1712962244796,-500.0,0.00054794,120]
[322355721,1712962244804,-584.44120467,0.00054794,120]
[322355722,1712962244814,-500.0,0.00054794,120]
[322355723,1712962244822,-500.0,0.00054794,120]
[322355724,1712962244832,-500.0,0.00054794,120]
[322355725,1712962244841,-500.0,0.00054794,120]
[322355726,1712962244851,-504.44726382,0.00054794,120]
[322355727,1712962244862,-1540.92,0.00054794,120]
[322355728,1712962244871,-500.0,0.00054794,120]
[322355729,1712962244880,-500.0,0.00054794,120]
[322355730,1712962244890,-500.0,0.00054794,120]
[322355731,1712962244899,-440.23207232,0.00054794,120]
[322355732,1712962244908,-500.0,0.00054794,120]
[322355733,1712962244917,-500.0,0.00054794,120]
[322355734,1712962244926,-500.0,0.00054794,120]
[322355735,1712962244935,-500.0,0.00054794,120]
[322355736,1712962244945,-500.0,0.00054794,120]
[322355737,1712962244954,-401.6539953,0.00054794,120]
[322355738,1712962244964,-500.0,0.00054794,120]
[322355739,1712962244973,-500.0,0.00054794,120]
[322355740,1712962244983,-500.0,0.00054794,120]
[322355741,1712962244993,-500.0,0.00054794,120]
[322355742,1712962245002,-500.0,0.00054794,120]
[322355743,1712962245012,-500.0,0.00054794,120]
[322355744,1712962245021,-285.03244185,0.00054794,120]
[322355745,1712962245031,-500.0,0.00054794,120]
[322355746,1712962245041,-500.0,0.00054794,120]
[322355747,1712962245050,-434.09416555,0.00054794,120]
[322355748,1712962245059,-772.73,0.00054794,120]
[322355749,1712962245069,-500.0,0.00054794,120]
[322355750,1712962245080,-500.0,0.00054794,120]
[322355751,1712962245090,-500.0,0.00054794,120]
[322355752,1712962245099,-500.0,0.00054794,120]
[322355753,1712962245112,-500.0,0.00054794,120]
[322355754,1712962245121,-4232.05,0.00054794,120]
[322355755,1712962245131,-500.0,0.00054794,120]
[322355756,1712962245142,-500.0,0.00054794,120]
[322355757,1712962245151,-500.0,0.00054794,120]
[322355758,1712962245160,-504.27931502,0.00054794,120]
[322355759,1712962245169,-500.0,0.00054794,120]
[322355760,1712962245178,-505.17227875,0.00054794,120]
[322355761,1712962245187,-1631.07,0.00054794,120]
[322355762,1712962245196,-500.0,0.00054794,120]
[322355763,1712962245206,-500.0,0.00054794,120]
[322355764,1712962245217,-500.0,0.00054794,120]
[322355765,1712962245225,-500.0,0.00054794,120]
[322355766,1712962245235,-500.0,0.00054794,120]
[322355767,1712962245245,-500.0,0.00054794,120]
[322355768,1712962245254,-500.0,0.00054794,120]
[322355769,1712962245263,-502.50360943,0.00054794,120]
[322355770,1712962245272,-500.0,0.00054794,120]
[322355771,1712962245282,-500.0,0.00054794,120]
[322355772,1712962245291,-500.0,0.00054794,120]
[322355773,1712962245300,-500.0,0.00054794,120]
[322355775,1712962245310,-574.41947554,0.00054794,120]
[322355777,1712962245320,-500.0,0.00054794,120]
[322355779,1712962245329,-500.0,0.00054794,120]
[322355781,1712962245338,-500.0,0.00054794,120]
[322355782,1712962245347,-512.33534483,0.00054794,120]
[322355783,1712962245359,-1000.0,0.00054794,7]
[322355784,1712962245368,-500.0,0.00054794,120]
[322355785,1712962245378,-500.0,0.00054794,120]
[322355786,1712962245387,-500.0,0.00054794,120]
[322355787,1712962245397,-1631.07,0.00054794,120]
[322355788,1712962245406,-329.03838504,0.00054794,120]
[322355789,1712962245418,-500.0,0.00054794,120]
[322355790,1712962245428,-500.0,0.00054794,120]
[322355791,1712962245437,-500.0,0.00054794,120]
[322355792,1712962245446,-500.0,0.00054794,120]
[322355793,1712962245456,-518.94341513,0.00054794,120]
[322355794,1712962245467,-500.0,0.00054794,120]
[322355795,1712962245477,-500.0,0.00054794,120]
[322355796,1712962245487,-500.0,0.00054794,120]
[322355797,1712962245497,-1285.21,0.00054794,120]
[322355798,1712962245506,-822.44,0.00054794,120]
[322355799,1712962245515,-527.51,0.00054794,120]
[322355800,1712962245524,-7890.88,0.00054794,120]
[322355801,1712962245534,-238.85494848,0.00054794,120]
[322355802,1712962245543,-500.0,0.00054794,120]
[322355803,1712962245551,-500.0,0.00054794,120]
[322355804,1712962245561,-500.0,0.00054794,60]
[322355805,1712962245570,-3281.2,0.00054794,120]
[322355806,1712962245580,-948.8,0.00054794,120]
[322355807,1712962245589,-500.0,0.00054794,120]
[322355808,1712962245599,-1337.04,0.00054794,120]
[322355809,1712962245608,-500.0,0.00054794,120]
[322355810,1712962245618,-500.0,0.00054794,120]
[322355811,1712962245627,-505.04673356,0.00054794,120]
[322355812,1712962245636,-585.2681263,0.00054794,120]
[322355813,1712962245645,-500.0,0.00054794,120]
[322355814,1712962245654,-500.0,0.00054794,120]
[322355815,1712962245663,-873.91,0.00054794,120]
[322355816,1712962245672,-274.5924307,0.00054794,120]
[322355817,1712962245681,-500.0,0.00054794,120]
[322355818,1712962245690,-500.0,0.00054794,120]
[322355819,1712962245699,-500.0,0.00054794,120]
[322355820,1712962245708,-500.0,0.00054794,120]
[322355821,1712962245717,-3160.36,0.00054794,120]
[322355822,1712962245726,-500.0,0.00054794,120]
[322355823,1712962245734,-500.0,0.00054794,120]
[322355824,1712962245743,-500.0,0.00054794,120]
[322355825,1712962245752,-162.44536166,0.00054794,120]
[322355826,1712962245762,-500.0,0.00054794,120]
[322355827,1712962245770,-538.76934425,0.00054794,120]
[322355828,1712962245779,-1026.41,0.00054794,120]
[322355829,1712962245788,-500.0,0.00054794,120]
[322355830,1712962245797,-500.0,0.00054794,120]
[322355831,1712962245806,-3088.93,0.00054794,120]
[322355832,1712962245816,-503.98101006,0.00054794,120]
[322355833,1712962245825,-500.0,0.00054794,120]
[322355834,1712962245834,-500.0,0.00054794,120]
[322355835,1712962245843,-500.0,0.00054794,120]
[322355836,1712962245853,-500.0,0.00054794,120]
[322355837,1712962245863,-500.0,0.00054794,120]
[322355838,1712962245873,-617.19848953,0.00054794,120]
[322355839,1712962245882,-500.0,0.00054794,120]
[322355840,1712962245891,-500.0,0.00054794,120]
[322355841,1712962245900,-586.09549858,0.00054794,120]
[322355842,1712962245910,-500.0,0.00054794,120]
[322355844,1712962245918,-500.0,0.00054794,120]
[322355845,1712962245928,-1165.01,0.00054794,120]
[322355846,1712962245938,-500.0,0.00054794,120]
[322355847,1712962245947,-500.0,0.00054794,120]
[322355848,1712962245956,-500.0,0.00054794,120]
[322355849,1712962245965,-500.0,0.00054794,120]
[322355851,1712962245974,-500.0,0.00054794,120]
[322355852,1712962245983,-500.0,0.00054794,120]
[322355853,1712962245992,-500.0,0.00054794,120]
[322355854,1712962246001,-500.0,0.00054794,120]
[322355855,1712962246010,-500.0,0.00054794,120]
[322355856,1712962246019,-1078.82,0.00054794,120]
[322355857,1712962246029,-500.0,0.00054794,120]
[322355858,1712962246038,-500.0,0.00054794,120]
[322355859,1712962246046,-500.0,0.00054794,120]
[322355860,1712962246055,-500.0,0.00054794,120]
[322355861,1712962246065,-500.0,0.00054794,120]
[322355862,1712962246075,-500.0,0.00054794,120]
[322355863,1712962246084,-500.0,0.00054794,120]
[322355864,1712962246097,-500.0,0.00054794,120]
[322355865,1712962246106,-500.0,0.00054794,120]
[322355866,1712962246116,-500.0,0.00054794,120]
[322355867,1712962246125,-193.08517013,0.00054794,120]
[322355868,1712962246136,-500.0,0.00054794,120]
[322355869,1712962246145,-500.0,0.00054794,120]
[322355870,1712962246155,-500.0,0.00054794,120]
[322355871,1712962246164,-500.0,0.00054794,120]
[322355872,1712962246174,-500.0,0.00054794,120]
[322355873,1712962246183,-513.00692363,0.00054794,120]
[322355874,1712962246192,-227.67976332,0.00054794,120]
[322355875,1712962246201,-500.0,0.00054794,120]
[322355876,1712962246211,-500.0,0.00054794,120]
[322355878,1712962246220,-503.32081109,0.00054794,120]
[322355879,1712962246230,-500.0,0.00054794,120]
[322355880,1712962246239,-500.0,0.00054794,120]
[322355881,1712962246248,-950.5,0.00054794,120]
[322355882,1712962246258,-500.0,0.00054794,120]
[322355883,1712962246267,-500.0,0.00054794,120]
[322355884,1712962246276,-500.0,0.00054794,120]
[322355885,1712962246286,-500.0,0.00054794,120]
[322355886,1712962246295,-500.0,0.00054794,120]
[322355887,1712962246304,-500.0,0.00054794,120]
[322355888,1712962246313,-500.32403526,0.00054794,120]
[322355889,1712962246322,-2788.85,0.00054794,120]
[322355891,1712962246332,-500.0,0.00054794,120]
[322355893,1712962246341,-500.0,0.00054794,120]
[322355894,1712962246350,-500.0,0.00054794,120]
[322355895,1712962246359,-500.0,0.00054794,120]
[322355896,1712962246368,-374.14526902,0.00054794,120]
[322355897,1712962246378,-500.0,0.00054794,120]
[322355898,1712962246387,-500.0,0.00054794,120]
[322355899,1712962246397,-500.0,0.00054794,120]
[322355900,1712962246406,-500.0,0.00054794,120]
[322355901,1712962246415,-500.0,0.00054794,120]
[322355902,1712962246424,-500.0,0.00054794,120]
[322355903,1712962246433,-1000.0,0.00054794,120]
[322355904,1712962246443,-500.0,0.00054794,120]
[322355905,1712962246452,-500.0,0.00054794,120]
[322355906,1712962246461,-500.0,0.00054794,120]
[322355907,1712962246471,-372.2863913,0.00054794,120]
[322355908,1712962246480,-500.0,0.00054794,120]
[322355909,1712962246490,-500.0,0.00054794,120]
[322355910,1712962246499,-2295.41,0.00054794,120]
[322355911,1712962246508,-500.0,0.00054794,120]
[322355912,1712962246517,-1226.66,0.00054794,120]
[322355913,1712962246526,-557.46006368,0.00054794,120]
[322355914,1712962246535,-500.0,0.00054794,120]
[322355915,1712962246544,-532.19,0.00054794,120]
[322355916,1712962246553,-500.0,0.00054794,120]
[322355917,1712962246562,-1105.94,0.00054794,120]
[322355918,1712962246572,-1524.76,0.00054794,120]
[322355919,1712962246581,-300.0,0.00054794,7]
[322355920,1712962246590,-500.0,0.00054794,120]
[322355921,1712962246600,-500.0,0.00054794,120]
[322355922,1712962246611,-37669.66,0.00054794,120]
[322355923,1712962246620,-500.0,0.00054794,120]
[322355924,1712962246629,-153.20965356,0.00054794,120]
[322355925,1712962246638,-500.0,0.00054794,120]
[322355926,1712962246647,-500.0,0.00054794,120]
[322355929,1712962246744,-859.71,0.00054794,120]
[322355930,1712962246754,-500.0,0.00054794,120]
[322355931,1712962246763,-11459.28,0.00054794,120]
[322355932,1712962246773,-500.0,0.00054794,120]
[322355933,1712962246782,-500.0,0.00054794,120]
[322355934,1712962246792,-500.0,0.00054794,120]
[322355935,1712962246801,-1162.91,0.00054794,120]
[322355936,1712962246810,-500.0,0.00054794,120]
[322355937,1712962246819,-507.36606183,0.00054794,120]
[322355938,1712962246828,-2882.21,0.00054794,21]
[322355939,1712962246837,-500.0,0.00054794,120]
[322355940,1712962246846,-500.0,0.00054794,120]
[322355941,1712962246857,-500.0,0.00054794,120]
[322355942,1712962246866,-500.0,0.00054794,120]
[322355943,1712962246875,-500.0,0.00054794,120]
[322355944,1712962246885,-500.0,0.00054794,120]
[322355945,1712962246894,-569.66,0.00054794,120]
[322355946,1712962246903,-500.0,0.00054794,120]
[322355947,1712962246912,-500.0,0.00054794,120]
[322355948,1712962246921,-500.0,0.00054794,120]
[322355949,1712962246931,-500.0,0.00054794,120]
[322355950,1712962246940,-500.0,0.00054794,120]
[322355951,1712962246949,-500.0,0.00054794,120]
[322355952,1712962246960,-500.0,0.00054794,120]
[322355953,1712962246969,-1231.36,0.00054794,120]
[322355954,1712962246979,-500.0,0.00054794,120]
[322355955,1712962246989,-500.0,0.00054794,120]
[322355956,1712962246998,-500.0,0.00054794,20]
[322355957,1712962247008,-500.0,0.00054794,120]
[322355958,1712962247017,-500.0,0.00054794,120]
[322355959,1712962247027,-500.0,0.00054794,120]
[322355960,1712962247037,-500.0,0.00054794,120]
[322355961,1712962247047,-500.0,0.00054794,120]
[322355962,1712962247056,-514.59037785,0.00054794,7]
[322355963,1712962247065,-500.0,0.00054794,120]
[322355964,1712962247074,-1899.39,0.00054794,120]
[322355965,1712962247084,-500.0,0.00054794,120]
[322355966,1712962247096,-500.0,0.00054794,120]
[322355967,1712962247106,-500.0,0.00054794,120]
[322355968,1712962247115,-1225.59,0.00054794,120]
[322355969,1712962247124,-500.0,0.00054794,120]
[322355970,1712962247135,-500.0,0.00054794,120]
[322355971,1712962247145,-500.0,0.00054794,120]
[322355972,1712962247154,-500.0,0.00054794,120]
[322355973,1712962247163,-500.0,0.00054794,120]
[322355974,1712962247173,-500.0,0.00054794,120]
[322355975,1712962247182,-1278.26,0.00054794,120]
[322355976,1712962247191,-500.0,0.00054794,120]
[322355977,1712962247200,-500.0,0.00054794,120]
[322355978,1712962247210,-500.0,0.00054794,120]
[322355979,1712962247219,-500.0,0.00054794,120]
[322355980,1712962247228,-506.91497064,0.00054794,120]